bitfinex-derivatives/quotes_SOLF0:USTF0_20250224
["timestamp","ask_amount","ask_price","bid_price","bid_amount"]
[1740363631285,153.39735891,163.75,163.72,16.10906901]
[1740363631683,153.39735891,163.75,163.66,25.78984766]
[1740363632078,153.39735891,163.75,163.69,6.1086]
[1740363632282,0.04202531,163.72,163.66,25.78984766]
[1740363632887,0.04202531,163.72,163.7,6.1085]
[1740363633889,0.04202531,163.72,163.63,30.22684766]
[1740363634189,8.28,163.73,163.63,25.78984766]
[1740363634483,0.04528912,163.69,163.66,6.1097]
[1740363634886,0.04528912,163.69,163.65,6.1103]
[1740363635089,8.28,163.73,163.65,6.1103]
[1740363635283,0.04101438,163.69,163.59,62.78984766]
[1740363635488,6.108,163.72,163.62,6.1116]
[1740363635689,0.03878632,163.66,163.62,6.1116]
[1740363635888,0.03878632,163.66,163.59,37.0]
[1740363636084,0.03878632,163.66,163.59,41.74425912]
[1740363636986,0.03878632,163.66,163.6,6.1122]
[1740363637594,4.05082111,163.65,163.6,6.1122]
[1740363638187,4.05082111,163.65,163.59,31.95441146]
[1740363638392,0.03878632,163.66,163.6,6.1121]
[1740363638684,0.03878632,163.66,163.59,31.95441146]
[1740363638888,0.03878632,163.66,163.59,57.74425912]
[1740363639293,0.03878632,163.66,163.63,6.1109]
[1740363639492,0.03878632,163.66,163.62,25.78984766]
[1740363639690,68.17660396,163.68,163.65,25.78984766]
[1740363639891,68.17660396,163.68,163.67,6.1097]
[1740363641295,59.38690396,163.68,163.67,6.1097]
[1740363641790,50.59690396,163.68,163.67,6.1097]
[1740363641991,0.0409214,163.69,163.66,0.04043206]
[1740363642196,0.0409214,163.69,163.68,6.1093]
[1740363642496,85.22075495,163.75,163.68,25.78984766]
[1740363642693,2.36322503,163.74,163.68,25.78984766]
[1740363642885,2.36322503,163.73,163.68,25.78984766]
[1740363643086,85.22075495,163.75,163.68,25.78984766]
[1740363643292,2.36317044,163.74,163.68,25.78984766]
[1740363643493,0.04024438,163.73,163.7,0.04341349]
[1740363644095,2.36323389,163.72,163.7,0.04341349]
[1740363644293,0.04024438,163.73,163.7,0.04341349]
[1740363644493,2.36434799,163.72,163.7,0.04341349]
[1740363644794,0.04024438,163.73,163.7,0.04341349]
[1740363644993,2.36402252,163.72,163.7,0.04341349]
[1740363645201,2.36402252,163.71,163.7,0.04341349]
[1740363646901,0.04024438,163.73,163.7,0.04341349]
[1740363647102,2.36370395,163.72,163.71,6.1078]
[1740363647299,2.36370395,163.72,163.7,0.04341349]
[1740363647499,2.36370395,163.71,163.7,0.04341349]
[1740363647699,2.36370395,163.72,163.7,0.04341349]
[1740363647900,2.36481031,163.71,163.7,0.04341349]
[1740363648603,2.36481031,163.71,163.7,6.15191349]
[1740363649304,0.04024438,163.73,163.72,6.1078]
[1740363649498,2.40733942,163.73,163.72,6.1078]
[1740363650301,2.40733942,163.73,163.7,6.15181349]
[1740363650497,2.36709504,163.72,163.7,6.15181349]
[1740363650696,2.28360991,163.71,163.7,6.15181349]
[1740363651302,2.28360991,163.71,163.7,0.04341349]
[1740363651504,2.28360991,163.71,163.7,356.85541871]
[1740363651704,10.0768,163.8,163.7,356.85541871]
[1740363652000,4.06058289,163.79,163.7,356.81200522]
[1740363652205,4.06058289,163.79,163.7,464.20675266]
[1740363652405,10.16588289,163.79,163.7,464.20675266]
[1740363652710,4.06058289,163.78,163.7,464.20675266]
[1740363652911,0.03872823,163.76,163.73,0.0410184]
[1740363653108,0.03872823,163.76,163.74,6.1071]
[1740363653310,4.06058289,163.75,163.74,6.1071]
[1740363654819,4.06058289,163.75,163.74,97.54446725]
[1740363655020,1.7968,163.8,163.75,6.1063]
[1740363655716,11.963,163.81,163.74,91.43736725]
[1740363655717,3.683,163.81,163.74,91.43736725]
[1740363656116,6.1051,163.8,163.74,91.43736725]
[1740363656421,0.04575436,163.79,163.74,91.43736725]
[1740363656718,0.04575436,163.79,163.75,91.43736725]
[1740363657114,3.683,163.81,163.75,91.43736725]
[1740363657320,29.47284766,163.81,163.75,91.43736725]
[1740363657515,25.78984766,163.78,163.75,85.58186725]
[1740363657721,1.9066,163.77,163.75,76.79756725]
[1740363657912,6.1063,163.76,163.75,76.79756725]
[1740363658120,6.1063,163.76,163.75,70.94096725]
[1740363658421,6.1063,163.76,163.75,66.09826725]
[1740363658623,6.1063,163.76,163.75,38.98514188]
[1740363658917,6.1067,163.75,163.74,0.0394171]
[1740363659111,6.01966787,163.75,163.74,0.0394171]
[1740363660514,6.01966787,163.75,163.74,826.80961929]
[1740363661625,6.15053188,163.77,163.74,826.80961929]
[1740363661925,0.04423188,163.77,163.74,826.80961929]
[1740363662811,0.04423188,163.77,163.74,743.64532287]
[1740363662812,31.89654766,163.75,163.74,743.64532287]
[1740363663013,31.89654766,163.75,163.74,539.35838458]
[1740363663223,31.89654766,163.75,163.74,524.08213295]
[1740363663425,6.1067,163.75,163.74,160.1373176]
[1740363663819,8.49591446,163.75,163.74,160.1373176]
[1740363664427,26.79591446,163.75,163.74,112.48480696]
[1740363664723,34.77594315,163.75,163.74,112.48480696]
[1740363664924,45.7702331,163.75,163.74,112.48480696]
[1740363665318,46.89336661,163.75,163.74,112.48480696]
[1740363665522,40.78666661,163.75,163.73,0.04681946]
[1740363665721,35.72281833,163.74,163.7,123.39474744]
[1740363665918,25.78984766,163.71,163.7,103.07729508]
[1740363666224,28.07575697,163.71,163.56,5.6792]
[1740363666427,2.28590931,163.7,163.59,24.94259651]
[1740363666721,0.04603405,163.66,163.63,0.04039696]
[1740363666926,10.56590931,163.65,163.63,0.04039696]
[1740363667119,2.28590931,163.64,163.63,0.04039696]
[1740363667520,2.28590931,163.64,163.59,15.95441146]
[1740363667715,25.78984766,163.62,163.59,15.95441146]
[1740363667919,2.28590931,163.61,163.59,15.95441146]
[1740363668224,2.28590931,163.6,163.45,25.78984766]
[1740363668525,28.07575697,163.59,163.45,25.78984766]
[1740363668721,2.28590931,163.58,163.38,110.39175696]
[1740363668926,0.04230968,163.54,163.51,0.04090237]
[1740363669130,2.28590931,163.53,163.46,6.1175]
[1740363669325,2.28590931,163.52,163.51,0.03979332]
[1740363669620,2.28590931,163.52,163.4,25.78984766]
[1740363669826,2.28590931,163.51,163.39,1.8334]
[1740363670123,2.28590931,163.5,163.39,1.8334]
[1740363670322,8.42,163.63,163.45,25.78984766]
[1740363670521,10.68678373,163.62,163.48,25.78984766]
[1740363670724,0.046366,163.56,163.52,0.04042778]
[1740363671130,0.046366,163.56,163.45,25.78984766]
[1740363671424,25.78984766,163.6,163.52,0.03933449]
[1740363671629,45.80089309,163.55,163.52,0.03933449]
[1740363672024,45.80089309,163.55,163.53,6.1149]
[1740363672230,45.80089309,163.54,163.52,0.03933449]
[1740363672819,54.22089309,163.54,163.52,0.03933449]
[1740363674523,54.22089309,163.54,163.52,6.15433449]
[1740363674928,54.22089309,163.54,163.49,8.99418548]
[1740363675119,44.28067971,163.53,163.49,8.99418548]
[1740363675322,44.28067971,163.53,163.5,6.116]
[1740363675628,44.28067971,163.53,163.44,8.99487425]
[1740363675629,209.42359497,163.52,163.44,8.99487425]
[1740363676229,0.03916161,163.5,163.44,8.99487425]
[1740363676529,0.03916161,163.5,163.45,6.1179]
[1740363677129,167.62147414,163.5,163.44,15.11317425]
[1740363677329,167.62147414,163.5,163.39,31.37634766]
[1740363677526,0.03916161,163.5,163.39,27.67814766]
[1740363677722,193.37216019,163.52,163.44,6.1181]
[1740363677932,0.04246881,163.46,163.43,9.21818978]
[1740363678128,195.26666019,163.52,163.43,9.21818978]
[1740363678323,0.04451293,163.46,163.41,6.1193]
[1740363678528,8.48451293,163.46,163.41,6.1193]
[1740363678832,8.48451293,163.46,163.4,9.21818978]
[1740363681132,8.48451293,163.46,163.43,6.1186]
[1740363681824,8.48451293,163.46,163.41,1.7814]
[1740363682029,8.48451293,163.46,163.41,7.9005]
[1740363682431,8.48451293,163.46,163.41,1.7814]
[1740363682636,8.48451293,163.46,163.43,6.1186]
[1740363682835,8.48451293,163.46,163.43,15.33678978]
[1740363684034,8.48451293,163.46,163.41,1.7814]
[1740363685535,0.04451293,163.46,163.41,1.7814]
[1740363686237,0.04451293,163.46,163.44,6.1179]
[1740363686739,0.04451293,163.46,163.45,6.1179]
[1740363687636,0.04451293,163.46,163.41,25.78984766]
[1740363688639,0.04451293,163.46,163.44,6.118]
[1740363689235,0.04451293,163.46,163.43,9.21818978]
[1740363689436,0.04451293,163.46,163.37,72.70390372]
[1740363689840,2.22621498,163.45,163.37,72.70390372]
[1740363690144,2.22589289,163.44,163.37,72.70390372]
[1740363690339,0.03952851,163.43,163.37,72.70390372]
[1740363690543,8.46,163.42,163.37,72.70390372]
[1740363691043,10.3999,163.42,163.37,72.70390372]
[1740363693340,2.22502735,163.41,163.37,72.70390372]
[1740363693545,0.03952851,163.43,163.37,72.70390372]
[1740363693846,0.03952851,163.43,163.38,29.39604766]
[1740363694049,0.03952851,163.43,163.42,6.119]
[1740363694235,8.5,163.46,163.41,9.21879905]
[1740363694440,8.5,163.46,163.41,35.00864671]
[1740363694642,254.06888481,163.51,163.41,35.00864671]
[1740363694841,2.22844682,163.5,163.41,35.00864671]
[1740363695042,254.06888481,163.51,163.41,35.00864671]
[1740363695245,254.06888481,163.51,163.44,25.78984766]
[1740363695446,0.04199841,163.48,163.44,25.83293577]
[1740363695643,254.06888481,163.51,163.44,25.83293577]
[1740363696043,8.5,163.52,163.44,0.04308811]
[1740363696246,2.23153934,163.51,163.44,0.04308811]
[1740363696445,34.28984766,163.52,163.44,0.04308811]
[1740363696446,25.78984766,163.49,163.44,0.04308811]
[1740363696644,2.23106614,163.48,163.44,0.04308811]
[1740363696844,2.23106614,163.47,163.44,0.04308811]
[1740363697245,25.78984766,163.46,163.44,0.04308811]
[1740363697445,2.23106614,163.45,163.44,0.04308811]
[1740363698645,0.04290079,163.48,163.44,0.04308811]
[1740363698841,2.23542907,163.47,163.44,0.04308811]
[1740363699044,0.04290079,163.48,163.44,0.04308811]
[1740363699242,2.2360489,163.47,163.44,0.04308811]
[1740363699447,2.2360489,163.46,163.44,0.04308811]
[1740363699647,2.2360489,163.46,163.42,6.1189]
[1740363699850,2.2360489,163.46,163.41,9.42951282]
[1740363700248,2.2360489,163.45,163.41,9.42951282]
[1740363700550,2.2360489,163.44,163.41,9.42951282]
[1740363700752,2.2360489,163.43,163.41,9.46877969]
[1740363700951,8.48,163.44,163.41,0.03926687]
[1740363701155,2.23893406,163.43,163.41,0.03926687]
[1740363701357,2.23893406,163.42,163.41,0.03926687]
[1740363702951,2.23893406,163.42,163.27,27.62724766]
[1740363703151,25.78984766,163.4,163.27,31.46114766]
[1740363703353,2.23893406,163.39,163.33,6.1223]
[1740363703554,2.23893406,163.38,163.3,42.09114013]
[1740363703755,2.23893406,163.37,163.3,42.09114013]
[1740363703960,2.23893406,163.36,163.3,42.09114013]
[1740363704160,2.28343511,163.35,163.3,42.09114013]
[1740363704459,50.57114013,163.44,163.35,6.1216]
[1740363704658,2.24623527,163.43,163.35,6.1216]
[1740363704960,0.0418415,163.41,163.35,6.1216]
[1740363705257,2.24623527,163.4,163.35,6.1216]
[1740363705458,2.24623527,163.39,163.37,6.1209]
[1740363705660,2.24623527,163.38,163.3,42.09114013]
[1740363705861,2.24623527,163.37,163.3,42.09114013]
[1740363706061,3.527e-05,163.36,163.35,6.1213]
[1740363706259,8.514e-05,163.35,163.3,42.09114013]
[1740363706462,8.46,163.41,163.37,6.1207]
[1740363706660,42.09114013,163.44,163.3,42.09114013]
[1740363706959,8.46,163.43,163.3,42.09114013]
[1740363707558,0.04217761,163.38,163.35,0.04390069]
[1740363707956,0.04217761,163.38,163.37,6.1208]
[1740363708556,8.48,163.44,163.36,1.764]
[1740363708753,8.48,163.44,163.4,6.1197]
[1740363709257,8.48,163.44,163.38,6.1204]
[1740363709652,0.04582312,163.43,163.39,0.04217085]
[1740363711158,167.58231253,163.41,163.39,0.04217085]
[1740363713365,8.52582312,163.43,163.39,0.04217085]
[1740363714662,8.52582312,163.43,163.39,6.16207085]
[1740363714963,8.52582312,163.43,163.39,0.04217085]
[1740363716664,8.52582312,163.43,163.4,6.1195]
[1740363716863,8.52582312,163.43,163.39,0.04217085]
[1740363719263,8.52582312,163.43,163.39,6.16227085]
[1740363719766,8.52582312,163.43,163.39,0.04217085]
[1740363719962,167.58231253,163.52,163.42,42.09114013]
[1740363720165,149.98941253,163.52,163.48,42.09114013]
[1740363720361,145.45111253,163.52,163.48,42.09114013]
[1740363720570,145.45111253,163.52,163.51,6.1157]
[1740363721366,145.45111253,163.52,163.51,48.20684013]
[1740363721769,0.04060277,163.53,163.52,6.1153]
[1740363722268,12.2916,163.64,163.55,6.1141]
[1740363722872,12.2916,163.64,163.56,6.1137]
[1740363723174,3.7316,163.64,163.54,42.09114013]
[1740363723469,0.04111983,163.62,163.58,6.1553221]
[1740363723662,0.04111983,163.62,163.58,0.0424221]
[1740363725066,0.04111983,163.62,163.6,6.1122]
[1740363725370,0.04111983,163.62,163.58,0.0424221]
[1740363725872,0.04111983,163.62,163.6,42.09114013]
[1740363726366,1.983e-05,163.62,163.61,6.1119]
[1740363726767,1.9132,163.69,163.6,42.09114013]
[1740363726971,1.9132,163.69,163.66,6.11]
[1740363727270,3.6989,163.72,163.63,42.09114013]
[1740363727471,3.6989,163.72,163.68,6.1093]
[1740363727669,1.7741,163.72,163.66,25.79351555]
[1740363727870,1.7801,163.74,163.66,25.79351555]
[1740363728170,0.03853616,163.71,163.69,25.79351555]
[1740363728973,0.03853616,163.71,163.7,6.1082]
[1740363729174,61.9929516,163.75,163.69,25.79351555]
[1740363729374,1.86,163.78,163.66,25.79351555]
[1740363729673,1.86,163.78,163.64,41.91566321]
[1740363729969,1.86,163.78,163.67,41.91566321]
[1740363730370,0.04114045,163.74,163.71,0.04694948]
[1740363730565,0.04114045,163.74,163.71,6.15514948]
[1740363731870,0.04114045,163.74,163.71,0.04694948]
[1740363732071,0.04114045,163.74,163.72,6.1075]
[1740363732272,0.04114045,163.74,163.71,0.04694948]
[1740363732671,0.04114045,163.74,163.73,6.1074]
[1740363734271,4.045e-05,163.74,163.73,6.1074]
[1740363734779,4.045e-05,163.74,163.73,48.02306321]
[1740363736781,5.5912,163.86,163.73,41.91566321]
[1740363737080,3.7167,163.86,163.78,41.91566321]
[1740363737282,1.8745,163.91,163.78,41.91566321]
[1740363737478,5.5545,163.91,163.83,6.1034]
[1740363737882,0.04458863,163.89,163.85,0.04496462]
[1740363740791,0.04458863,163.89,163.75,41.91566321]
[1740363740992,41.91566321,163.89,163.75,41.91566321]
[1740363741889,0.04701993,163.84,163.8,0.04495709]
[1740363742391,41.91566321,163.83,163.68,182.30493726]
[1740363742589,1.7962,163.82,163.68,41.91566321]
[1740363742791,3.5877,163.82,163.68,41.91566321]
[1740363743094,3.5877,163.82,163.74,6.1068]
[1740363743293,3.5877,163.82,163.68,41.91566321]
[1740363743592,3.5877,163.82,163.76,0.04085074]
[1740363743887,0.04705515,163.77,163.71,41.91566321]
[1740363744086,3.5877,163.82,163.77,0.04068428]
[1740363744294,3.5877,163.82,163.71,41.91566321]
[1740363744593,0.04141273,163.81,163.78,0.04450992]
[1740363744791,1.7915,163.82,163.78,6.15000992]
[1740363744994,0.04346639,163.81,163.78,0.04214241]
[1740363746991,0.04346639,163.81,163.8,6.1048]
[1740363748591,6.639e-05,163.81,163.8,6.1048]
[1740363749089,1.7787,163.86,163.83,6.1034]
[1740363749290,1.8687,163.89,163.8,41.91566321]
[1740363749796,1.8687,163.89,163.8,25.74518056]
[1740363750297,0.04007783,163.86,163.83,0.04322942]
[1740363750691,0.04007783,163.86,163.85,6.103]
[1740363750993,7.783e-05,163.86,163.85,6.103]
[1740363752699,2.43167373,163.91,163.89,6.1014]
[1740363753200,2.43167373,163.91,163.83,25.74518056]
[1740363753399,2.43167373,163.91,163.88,6.1018]
[1740363753800,2.47295161,163.91,163.88,6.14543784]
[1740363753999,2.47295161,163.91,163.9,6.1011]
[1740363754405,2.47295161,163.91,163.88,0.04363784]
[1740363756397,12.2047,163.96,163.88,0.04363784]
[1740363756598,12.2047,163.96,163.88,6.14543784]
[1740363756993,12.2047,163.96,163.88,0.04363784]
[1740363757602,25.78831496,163.94,163.86,8.34393175]
[1740363758201,25.78831496,163.94,163.86,33.72846348]
[1740363758697,25.78831496,163.94,163.88,0.04413343]
[1740363759499,25.78831496,163.94,163.86,33.72846348]
[1740363760700,25.78831496,163.94,163.88,0.04291349]
[1740363760903,25.78831496,163.94,163.86,33.72846348]
[1740363761103,25.78831496,163.94,163.85,33.72846348]
[1740363761298,25.74518056,163.94,163.85,33.72846348]
[1740363761804,1.9055,163.93,163.89,6.1014]
[1740363762005,0.03941565,163.91,163.88,0.04489105]
[1740363762200,0.03941565,163.91,163.9,6.101]
[1740363763208,0.03941565,163.91,163.9,12.18078579]
[1740363765407,0.03941565,163.91,163.9,61.92282438]
[1740363768515,0.03941565,163.91,163.9,140.95628621]
[1740363769017,0.03941565,163.91,163.9,134.85528621]
[1740363769217,0.03941565,163.91,163.9,101.71878621]
[1740363771410,25.78459621,163.91,163.88,101.89706612]
[1740363771616,25.78459621,163.91,163.85,8.44693047]
[1740363771815,25.74518056,163.88,163.85,8.44693047]
[1740363772011,8.38,163.87,163.85,8.44693047]
[1740363774920,8.38,163.87,163.84,0.04369947]
[1740363779028,0.04234094,163.88,163.84,0.04369947]
[1740363781329,25.74518056,163.86,163.84,0.04369947]
[1740363781531,25.74518056,163.86,163.73,25.74518056]
[1740363781730,25.74518056,163.86,163.76,6.1063]
[1740363782129,25.74518056,163.86,163.73,25.74518056]
[1740363782526,0.03922967,163.83,163.8,0.0446882]
[1740363783326,25.78441023,163.83,163.73,6.1074]
[1740363783530,25.74518056,163.8,163.69,2.1486]
[1740363783730,8.38,163.79,163.69,2.1486]
[1740363783931,8.38,163.79,163.69,8.2572]
[1740363784528,0.04104192,163.76,163.72,0.04102145]
[1740363785033,25.74518056,163.74,163.64,2.1614]
[1740363785434,25.74518056,163.74,163.64,8.2722]
[1740363785835,25.74518056,163.74,163.63,2.29]
[1740363786039,0.04174288,163.71,163.67,0.03616115]
[1740363786233,8.38,163.7,163.67,0.03616115]
[1740363792150,0.04174288,163.71,163.67,0.03616115]
[1740363794955,25.74518056,163.69,163.6,2.1217]
[1740363795150,25.74518056,163.66,163.58,2.2261]
[1740363795344,8.38,163.65,163.58,2.2261]
[1740363795950,0.04001132,163.63,163.58,2.2261]
[1740363796850,0.04001132,163.63,163.59,6.1126]
[1740363798053,0.04001132,163.63,163.57,6.1132]
[1740363798255,8.38,163.65,163.53,2.1374]
[1740363798451,0.03969232,163.62,163.53,2.1374]
[1740363798756,0.03969232,163.62,163.57,6.113]
[1740363799955,0.03969232,163.62,163.55,6.1139]
[1740363800156,0.03969232,163.62,163.53,2.1374]
[1740363800356,25.74518056,163.6,163.53,2.1374]
[1740363800951,0.04310227,163.58,163.53,2.1374]
[1740363801252,0.04310227,163.58,163.53,8.2523]
[1740363801454,8.38,163.57,163.49,4.4578]
[1740363801959,0.04238049,163.55,163.5,6.1157]
[1740363803456,0.04238049,163.55,163.49,2.2843]
[1740363803961,0.04238049,163.55,163.48,6.1165]
[1740363806860,0.04238049,163.55,163.46,6.1172]
[1740363807155,25.74518056,163.54,163.46,6.1172]
[1740363807363,0.0412644,163.52,163.45,4.2955]
[1740363807566,25.74518056,163.51,163.38,28.04658056]
[1740363807758,25.74518056,163.51,163.39,4.4986]
[1740363808059,1.12439234,163.5,163.41,6.119]
[1740363808364,0.04453125,163.47,163.39,4.4986]
[1740363808557,0.04453125,163.47,163.4,6.1195]
[1740363809063,1.16892359,163.47,163.39,4.4986]
[1740363809463,0.04453125,163.47,163.39,4.4986]
[1740363809664,1.16927647,163.47,163.39,4.4986]
[1740363809964,25.74518056,163.45,163.32,25.74518056]
[1740363810164,0.04453125,163.47,163.33,6.53]
[1740363810364,1.12470811,163.47,163.39,6.1201]
[1740363810565,0.04070432,163.42,163.39,6.1201]
[1740363810858,0.04070432,163.42,163.33,6.53]
[1740363811065,8.36,163.41,163.33,6.53]
[1740363811469,8.36,163.41,163.33,4.3725]
[1740363811766,25.78539423,163.39,163.33,4.3725]
[1740363812166,0.04021367,163.39,163.33,4.3725]
[1740363815461,8.36,163.46,163.34,25.74518056]
[1740363815657,1.12481956,163.45,163.34,25.78507275]
[1740363815862,1.12481956,163.45,163.33,4.3725]
[1740363816265,25.74518056,163.43,163.33,4.3725]
[1740363816459,1.12481956,163.42,163.33,10.4948]
[1740363816664,0.04610781,163.4,163.36,0.04021368]
[1740363817869,1.12481956,163.42,163.36,0.04021368]
[1740363818164,216.74518056,163.49,163.36,0.04021368]
[1740363818368,1.12467904,163.48,163.4,6.1196]
[1740363818567,25.74518056,163.49,163.37,25.74518056]
[1740363818568,1.12464647,163.47,163.37,25.74518056]
[1740363818764,8.36,163.5,163.37,25.74518056]
[1740363818967,1.12458736,163.49,163.37,25.74518056]
[1740363819169,0.04031848,163.45,163.42,0.04493221]
[1740363819673,1.12458736,163.48,163.42,0.04493221]
[1740363819964,8.38,163.51,163.46,6.1175]
[1740363820166,1.12449036,163.5,163.43,2.7015]
[1740363820470,34.12518056,163.52,163.45,6.1179]
[1740363820671,1.12435843,163.51,163.45,6.1179]
[1740363820866,0.04653251,163.5,163.47,0.04426454]
[1740363821066,1.12435843,163.51,163.48,6.1165]
[1740363821277,8.4,163.53,163.47,0.04426454]
[1740363821572,1.12432758,163.52,163.47,0.04426454]
[1740363822172,8.4,163.53,163.47,0.04426454]
[1740363822467,0.04307245,163.51,163.47,0.04426454]
[1740363822672,8.4,163.53,163.47,0.04426454]
[1740363822871,8.4,163.53,163.49,6.1163]
[1740363823072,8.4,163.53,163.47,0.04426454]
[1740363823269,25.74518056,163.58,163.47,0.04426454]
[1740363823476,9.52401158,163.57,163.47,0.04426454]
[1740363823663,1.12401158,163.57,163.45,25.74518056]
[1740363823970,0.04600005,163.54,163.5,0.04227063]
[1740363824173,1.12387826,163.57,163.5,0.04227063]
[1740363825170,1.12387826,163.57,163.52,6.1153]
[1740363825373,0.04385546,163.55,163.5,0.04227063]
[1740363825573,1.16773372,163.55,163.5,0.04227063]
[1740363826272,1.16773372,163.55,163.51,6.1153]
[1740363826467,1.16773372,163.55,163.5,0.04227063]
[1740363826673,0.04385546,163.55,163.5,0.04227063]
[1740363826870,0.04385546,163.55,163.5,6.15797063]
[1740363827065,0.04385546,163.55,163.5,0.04227063]
[1740363827473,0.04385546,163.55,163.52,6.1152]
[1740363828077,0.04385546,163.55,163.53,6.1149]
[1740363828272,0.04385546,163.55,163.5,0.04227063]
[1740363828869,25.74518056,163.54,163.5,0.04227063]
[1740363829472,1.12418427,163.53,163.5,0.04227063]
[1740363829680,25.78903602,163.55,163.5,0.04227063]
[1740363829877,1.1242027,163.54,163.5,0.04227063]
[1740363830680,25.78903602,163.55,163.5,0.04227063]
[1740363830876,1.12419185,163.54,163.5,0.04227063]
[1740363832880,25.78903602,163.55,163.5,0.04227063]
[1740363833482,0.04385546,163.55,163.5,0.04227063]
[1740363835282,8.4,163.56,163.5,0.04227063]
[1740363835777,25.74518056,163.61,163.5,0.04227063]
[1740363835978,1.12381306,163.6,163.49,25.74518056]
[1740363836171,25.74518056,163.61,163.49,25.74518056]
[1740363836577,0.04138714,163.56,163.53,0.04164126]
[1740363836880,25.74518056,163.61,163.53,0.04164126]
[1740363837081,8.38,163.62,163.53,0.04164126]
[1740363837283,26.86889543,163.61,163.53,0.04164126]
[1740363837479,25.74518056,163.58,163.53,0.04164126]
[1740363837873,0.04284693,163.57,163.53,0.04164126]
[1740363839883,1.16680768,163.57,163.53,0.04164126]
[1740363843988,0.04284693,163.57,163.53,0.04164126]
[1740363845783,25.74518056,163.55,163.53,0.04164126]
[1740363845978,8.36,163.54,163.53,0.04164126]
[1740363847788,0.04284693,163.57,163.53,0.04164126]
[1740363849285,25.74518056,163.55,163.53,0.04164126]
[1740363849587,16.16290437,163.55,163.53,0.04164126]
[1740363850685,16.2057513,163.57,163.53,0.04164126]
[1740363851083,0.04284693,163.57,163.53,0.04164126]
[1740363852388,0.04284693,163.57,163.54,6.1145]
[1740363852888,0.04284693,163.57,163.53,0.04164126]
[1740363853087,0.04284693,163.57,163.55,6.1142]
[1740363855083,0.04284693,163.57,163.53,0.04164126]
[1740363855284,8.36,163.63,163.53,0.04164126]
[1740363855482,8.36,163.63,163.5,25.84754572]
[1740363856191,8.36,163.63,163.53,25.84754572]
[1740363856381,0.04456043,163.58,163.55,0.04395943]
[1740363856585,8.36,163.63,163.55,0.04395943]
[1740363856887,166.87863508,163.66,163.55,0.04395943]
[1740363856888,8.36,163.66,163.55,0.04395943]
[1740363857083,8.36,163.66,163.54,5.4299]
[1740363857684,0.04055497,163.62,163.58,0.04249005]
[1740363857890,0.04055497,163.62,163.61,6.1119]
[1740363858789,166.87863508,163.67,163.58,0.04249005]
[1740363858989,166.87863508,163.67,163.59,25.84754572]
[1740363859285,166.87863508,163.67,163.58,0.04249005]
[1740363859286,148.04093508,163.67,163.66,6.1101]
[1740363859489,125.10703508,163.67,163.66,6.1101]
[1740363859693,115.05383508,163.71,163.62,25.84754572]
[1740363859889,8.49e-06,163.68,163.65,0.04547358]
[1740363860092,8.49e-06,163.68,163.65,25.8930193]
[1740363860298,8.49e-06,163.68,163.67,6.1097]
[1740363860485,102.54144357,163.71,163.65,25.8930193]
[1740363860689,99.24584357,163.71,163.65,25.8930193]
[1740363861283,66.34504357,163.71,163.7,6.1086]
[1740363861487,12.13594358,163.71,163.7,6.1086]
[1740363861683,12.13594358,163.71,163.68,25.84754572]
[1740363861892,209.46379324,163.72,163.69,0.04240511]
[1740363862091,9.827e-05,163.72,163.71,25.84754572]
[1740363862490,9.827e-05,163.72,163.71,31.95574572]
[1740363863093,9.827e-05,163.72,163.71,6.1082]
[1740363863290,9.827e-05,163.72,163.69,0.04240511]
[1740363863991,9.827e-05,163.72,163.71,6.1082]
[1740363864194,9.827e-05,163.72,163.71,31.95574572]
[1740363865193,9.827e-05,163.72,163.7,6.1085]
[1740363865394,9.827e-05,163.72,163.69,0.04240511]
[1740363865790,9.827e-05,163.72,163.7,6.1086]
[1740363865995,9.827e-05,163.72,163.69,0.04240511]
[1740363866996,6.1086,163.7,163.69,0.04240511]
[1740363867201,25.84764399,163.72,163.64,8.44693047]
[1740363867395,25.84754572,163.69,163.64,8.44693047]
[1740363867595,6.1104,163.65,163.64,8.44693047]
[1740363867793,25.84754572,163.69,163.64,8.44693047]
[1740363867993,6.1087,163.7,163.64,8.44693047]
[1740363868299,0.0450203,163.71,163.67,0.04247151]
[1740363868999,0.0450203,163.71,163.68,6.109]
[1740363869300,0.0450203,163.71,163.67,0.04247151]
[1740363869505,0.0450203,163.71,163.67,6.15217151]
[1740363869701,0.0450203,163.71,163.67,0.04247151]
[1740363870502,0.0450203,163.71,163.69,6.1089]
[1740363870802,0.0450203,163.71,163.67,0.04247151]
[1740363871195,0.0450203,163.71,163.7,6.1086]
[1740363872498,2.03e-05,163.71,163.7,6.1086]
[1740363873799,6.1041,163.82,163.68,25.84754572]
[1740363873999,5.3377,163.83,163.69,0.0865]
[1740363874199,1.12221307,163.82,163.69,0.0865]